bitfinex/quotes_ETHUSD_20250526
["timestamp","ask_amount","ask_price","bid_price","bid_amount"]
[1748244566292,3.872,2579.1,2578.7,0.6703]
[1748244566475,7.74920323,2579.2,2578.7,1.05809223]
[1748244566793,3.872,2579.1,2578.7,1.05809223]
[1748244567350,1.32563134,2579.2,2578.7,7.27421069]
[1748244567609,3.872,2579.1,2578.8,0.38776436]
[1748244568382,3.872,2579.1,2578.7,4.35963697]
[1748244568574,3.872,2579.1,2578.8,0.3877665]
[1748244569481,3.872,2579.1,2578.7,4.35963565]
[1748244569680,3.872,2579.1,2578.7,0.6703]
[1748244569979,3.872,2579.1,2578.5,3.68936738]
[1748244569980,4.2647662,2579.0,2578.4,1.05812967]
[1748244570877,3.87763508,2578.9,2578.4,1.05812967]
[1748244571080,4.26477214,2579.0,2578.4,1.05812967]
[1748244571393,0.3872,2579.0,2578.5,0.38782048]
[1748244572063,0.3872,2579.0,2578.6,0.38780678]
[1748244572261,3.872,2579.1,2578.7,1.05809027]
[1748244572459,7.74932985,2579.1,2578.7,0.6703]
[1748244574679,3.872,2579.1,2578.7,0.6703]
[1748244576888,7.74937723,2579.1,2578.7,0.6703]
[1748244577259,7.74937723,2579.1,2578.5,0.6703]
[1748244577260,0.55,2578.9,2578.5,0.6703]
[1748244578595,4.42762913,2578.9,2578.3,3.68939917]
[1748244578801,4.42762913,2578.9,2578.4,0.3878348]
[1748244579865,0.55,2578.9,2578.4,0.3878348]
[1748244580975,4.42762227,2578.9,2578.4,0.3878348]
[1748244581176,5.30960276,2578.9,2578.4,0.3878348]
[1748244581400,2.34873772,2579.0,2578.5,3.30155093]
[1748244581401,0.82993772,2579.0,2578.5,3.30155093]
[1748244581586,3.872,2578.8,2578.7,4.35963673]
[1748244581785,3.872,2579.1,2578.9,0.38775796]
[1748244581987,3.872,2579.1,2578.8,0.38777027]
[1748244582691,1.5931,2579.5,2579.0,0.38773646]
[1748244582890,4.61415526,2579.4,2579.1,0.6703]
[1748244589202,1.95179802,2579.6,2579.2,1.05801282]
[1748244589507,1.95179802,2579.6,2579.2,0.6703]
[1748244590503,1.95179802,2579.6,2579.2,1.0580093]
[1748244590682,0.55,2579.7,2579.2,1.0580093]
[1748244590882,1.38473337,2579.7,2579.2,1.0580093]
[1748244591883,5.26116639,2579.7,2579.2,1.0580093]
[1748244592085,5.25573337,2579.7,2579.2,1.0580093]
[1748244592606,1.38473337,2579.7,2579.3,0.38769444]
[1748244592806,5.25573337,2579.7,2579.3,0.38769444]
[1748244592998,5.25573337,2579.7,2579.2,1.05800996]
[1748244593512,8.0,2579.6,2579.2,1.05800996]
[1748244595130,5.25573337,2579.7,2579.2,1.05800996]
[1748244596951,9.13216383,2579.7,2579.2,1.05800996]
[1748244597119,4.78982392,2579.6,2579.2,0.6703]
[1748244597315,4.78982392,2579.6,2578.9,3.30155093]
[1748244597316,3.87679955,2579.5,2579.0,0.6703]
[1748244597520,3.87679955,2579.5,2579.0,1.05803978]
[1748244598646,3.87679955,2579.5,2579.0,0.6703]
[1748244598852,5.42400077,2579.5,2579.0,0.6703]
[1748244599155,4.42689978,2579.4,2579.0,0.6703]
[1748244599556,0.55,2579.2,2578.8,0.6703]
[1748244599751,3.87743604,2579.1,2578.6,0.6703]
[1748244599917,4.42737547,2579.1,2578.6,0.6703]
[1748244600116,0.82983755,2579.0,2578.6,0.6703]
[1748244600521,4.70733128,2579.0,2578.6,0.6703]
[1748244601057,0.82983755,2579.0,2578.6,0.6703]
[1748244601338,4.7073183,2579.0,2578.6,0.6703]
[1748244602473,0.82983755,2579.0,2578.6,0.6703]
[1748244602637,3.871,2579.0,2578.6,1.05810685]
[1748244602841,3.871,2579.0,2578.6,0.6703]
[1748244603933,4.42738586,2579.1,2578.6,1.0581064]
[1748244604138,3.871,2579.0,2578.6,1.0581064]
[1748244604457,3.871,2579.0,2578.6,0.6703]
[1748244605876,8.20790035,2579.4,2578.8,0.6703]
[1748244606077,7.74832549,2579.1,2578.8,0.6703]
[1748244606271,3.871,2579.1,2578.6,0.6703]
[1748244606472,3.87755878,2579.0,2578.6,0.6703]
[1748244609582,7.74833828,2579.1,2578.6,0.6703]
[1748244610009,3.87762632,2578.9,2578.6,0.6703]
[1748244610184,3.8778004,2578.8,2578.6,0.6703]
[1748244610479,3.8776685,2578.9,2578.6,0.6703]
[1748244610677,3.87780042,2578.8,2578.6,0.6703]
[1748244610878,3.87792298,2578.7,2578.6,0.6703]
[1748244611087,4.65234224,2579.0,2578.6,0.6703]
[1748244611247,0.87911357,2578.9,2578.6,0.6703]
[1748244611574,3.87754543,2579.0,2578.6,0.6703]
[1748244611766,7.74854543,2579.0,2578.6,0.6703]
[1748244612075,3.87720243,2579.2,2578.7,3.30155093]
[1748244612076,3.87723811,2579.2,2578.7,3.30155093]
[1748244612445,7.74839992,2579.1,2578.7,3.30155093]
[1748244613277,7.74839992,2579.1,2578.6,0.6703]
[1748244613679,3.87722432,2579.2,2578.7,3.30155093]
[1748244613880,3.87722432,2579.2,2578.8,0.6703]
[1748244614188,3.871,2579.3,2578.9,3.30155093]
[1748244614990,7.74804377,2579.3,2578.9,3.30155093]
[1748244615188,7.86119802,2579.6,2578.9,3.30155093]
[1748244615189,1.95179802,2579.6,2579.0,0.6703]
[1748244615403,1.95179802,2579.6,2579.5,4.35952295]
[1748244615673,1.95179802,2579.6,2579.5,12.88715642]
[1748244615849,0.0679,2579.6,2579.5,12.88715642]
[1748244616040,0.05,2579.9,2579.8,9.05792694]
[1748244616268,0.05,2579.9,2579.8,13.30403469]
[1748244616446,0.05,2579.9,2579.8,1.61485682]
[1748244616643,0.05,2579.9,2579.8,0.6703]
[1748244617936,2.0041585,2579.9,2579.8,0.6703]
[1748244619269,2.0041585,2579.9,2579.6,0.6703]
[1748244619465,2.0041585,2579.9,2579.6,9.05795307]
[1748244620369,2.0041585,2579.9,2579.7,0.3876363]
[1748244620588,2.0041585,2579.9,2579.7,1.66235211]
[1748244621065,2.0041585,2579.9,2579.7,1.27471581]
[1748244621273,2.0041585,2579.9,2579.7,1.66235374]
[1748244621968,2.0041585,2579.9,2579.8,0.38762694]
[1748244622170,0.05,2579.9,2579.8,0.38762694]
[1748244622570,0.05,2579.9,2579.8,0.86233891]
[1748244625642,0.05,2579.9,2579.8,1.53263891]
[1748244628143,0.05,2579.9,2579.8,9.53263891]
[1748244628995,0.05,2579.9,2579.8,1.53263891]
[1748244629291,0.05,2579.9,2579.8,9.05792694]
[1748244634370,0.05,2579.9,2579.8,12.82627801]
[1748244634562,0.05,2579.9,2579.8,17.61512435]
[1748244635882,0.05,2579.9,2579.8,14.31357342]
[1748244636089,0.05,2579.9,2579.8,20.91667528]
[1748244638308,0.05,2580.9,2579.8,20.91667528]
[1748244638309,0.05,2580.9,2580.8,0.38747675]
[1748244638839,0.05,2580.9,2580.7,0.38748918]
[1748244640455,3.87547543,2580.4,2579.9,0.6703]
[1748244640664,3.87547543,2580.4,2579.6,0.54916915]
[1748244640665,1.5314,2580.3,2579.7,0.38764197]
[1748244640808,1.5314,2580.3,2579.7,0.38763275]
[1748244641004,3.87566946,2580.2,2579.7,0.38763275]
[1748244641198,3.87566946,2580.2,2579.6,0.38765108]
[1748244641643,3.87566946,2580.2,2579.7,0.38763991]
[1748244642008,3.87566946,2580.2,2579.6,0.38765053]
[1748244642711,3.87566946,2580.2,2579.6,3.68920146]
[1748244643142,5.40698066,2580.3,2579.7,0.3876365]
[1748244643361,1.5314,2580.3,2579.8,3.30155093]
[1748244643645,1.5314,2580.3,2579.8,3.68917089]
[1748244645323,5.40693805,2580.3,2579.8,3.30155093]
[1748244646049,1.5314,2580.3,2579.8,3.68917172]
[1748244646207,3.87509856,2580.6,2580.2,0.38756339]
[1748244646208,1.5694,2580.6,2580.2,0.38756339]
[1748244646530,1.5694,2580.6,2580.3,0.38754282]
[1748244646732,1.5694,2580.6,2580.2,3.68911309]
[1748244647333,1.5694,2580.6,2580.2,3.68911128]
[1748244648347,1.5694,2580.6,2580.1,3.30155093]
[1748244648540,1.5694,2580.6,2580.2,0.38755818]
[1748244650838,3.869,2580.8,2579.7,0.54916915]
[1748244651039,1.5235,2580.2,2579.7,0.93680307]
[1748244651360,1.5235,2580.2,2579.7,4.238354]
[1748244651554,5.39917798,2580.2,2579.7,0.93680307]
[1748244651857,1.5235,2580.2,2579.7,0.93680307]
[1748244652221,5.39920061,2580.2,2579.7,0.93680307]
[1748244652422,6.32666105,2580.2,2579.7,0.38763392]
[1748244654070,6.32666105,2580.2,2579.6,0.3876463]
[1748244654262,2.45096044,2580.2,2579.7,0.38763769]
[1748244655037,1.5235,2580.2,2579.7,0.38763769]
[1748244655564,0.55,2580.1,2579.6,0.38765418]
[1748244655862,1.5929,2580.0,2579.5,0.38766343]
[1748244656165,1.5929,2580.0,2579.6,0.3876528]
[1748244656351,2.19478147,2580.0,2579.6,0.3876528]
[1748244656959,2.19478147,2580.0,2579.6,3.68920373]
[1748244657272,1.6635,2580.2,2579.8,3.68917129]
[1748244657832,1.6635,2580.2,2580.0,0.38758789]
[1748244658136,1.5113,2580.4,2580.0,0.38759689]
[1748244659884,1.5113,2580.4,2580.0,0.38759603]
[1748244660530,2.49185347,2580.4,2579.6,3.30155093]
[1748244662075,2.49185347,2580.4,2579.8,3.30155093]
[1748244662242,3.869,2580.3,2580.0,3.30155093]
[1748244662443,3.869,2580.4,2580.0,3.30155093]
[1748244663174,1.58,2580.6,2580.0,3.30155093]
[1748244663377,3.869,2580.5,2580.0,3.30155093]
[1748244665073,1.58,2580.6,2580.0,3.30155093]
[1748244665289,1.6023,2580.3,2579.4,3.30155093]
[1748244665487,1.6023,2580.3,2579.2,3.75827371]
[1748244665676,1.6023,2580.0,2579.2,3.75827371]
[1748244665884,1.6023,2580.0,2579.6,0.38764796]
[1748244666283,2.15010097,2580.0,2579.6,0.38764796]
[1748244666793,2.15010097,2580.0,2579.1,0.7705686]
[1748244666794,2.15010097,2580.0,2579.5,0.38766932]
[1748244667897,3.869,2579.9,2579.5,0.38766932]
[1748244668475,7.74520616,2579.9,2579.3,0.38770208]
[1748244668677,5.42337629,2579.8,2579.2,0.38771014]
[1748244668862,6.412907,2579.8,2579.2,0.38771014]
[1748244669994,6.412907,2579.8,2579.2,0.38770882]
[1748244670204,3.87643771,2579.7,2579.2,0.38770882]
[1748244670368,6.41295168,2579.8,2579.2,0.38770882]
[1748244670568,1.41580877,2579.7,2579.2,0.38770882]
[1748244671069,1.41580877,2579.7,2579.3,0.38769977]
[1748244671403,1.41580877,2579.7,2579.2,3.30155093]
[1748244671762,1.5471,2579.8,2579.4,3.30155093]
[1748244672008,5.4171,2579.8,2579.4,3.30155093]
[1748244673207,3.87,2579.9,2579.4,3.30155093]
[1748244675520,3.87,2579.9,2578.9,0.39036168]
[1748244675718,1.5985,2579.8,2579.1,3.30155093]
[1748244675918,2.14535,2579.8,2579.1,3.30155093]
[1748244676931,1.5985,2579.8,2579.1,3.30155093]
[1748244678397,5.47481633,2579.8,2579.1,3.30155093]
[1748244680501,3.87668361,2579.6,2578.7,9.39155093]
[1748244680702,1.5819,2579.6,2578.7,9.39155093]
[1748244680906,0.55,2579.8,2578.7,9.39155093]
[1748244680907,0.55,2579.8,2579.1,3.30155093]
[1748244681225,5.45840515,2579.7,2579.1,3.30155093]
[1748244681413,4.47742297,2579.6,2578.9,3.30155093]
[1748244681618,1.5819,2579.5,2578.9,3.30155093]
[1748244686298,5.45865049,2579.5,2578.9,3.30155093]
[1748244686497,1.5238,2579.3,2578.7,9.39155093]
[1748244686836,9.27086386,2579.3,2578.7,6.09]
[1748244687196,3.87720289,2579.2,2578.7,6.09]
[1748244687416,1.643,2579.1,2578.7,6.09]
[1748244687624,6.45936358,2579.1,2578.3,3.30155093]
[1748244687828,1.643,2579.0,2578.2,6.09]
[1748244688148,1.643,2578.9,2578.2,6.09]
[1748244688305,3.87,2578.8,2578.2,6.09]
[1748244688508,4.86404754,2578.8,2578.2,6.09]
[1748244689012,4.86404754,2578.8,2578.1,3.35155093]
[1748244689013,1.5467,2578.7,2578.1,3.35155093]
[1748244689214,5.42466529,2578.7,2578.1,0.05]
[1748244690429,1.5467,2578.7,2578.1,0.05]
[1748244690839,5.42465286,2578.7,2578.1,0.05]
[1748244691036,2.96333349,2578.7,2578.1,0.05]
[1748244691241,6.84136023,2578.7,2578.1,0.05]
[1748244692054,1.5843,2578.5,2578.1,0.05]
[1748244695281,1.5843,2578.5,2578.1,3.35155093]
[1748244696275,1.5298,2578.7,2578.3,3.30155093]
[1748244696461,1.5298,2578.7,2578.1,0.05]
[1748244696462,3.871,2578.9,2578.5,3.30155093]
[1748244696677,3.871,2579.0,2578.5,3.30155093]
[1748244697486,5.4056,2579.0,2578.5,3.30155093]
[1748244698897,5.4056,2579.0,2578.5,3.63170602]
[1748244699960,5.4056,2579.0,2578.5,0.33015509]
[1748244700185,5.4056,2579.0,2578.3,3.30155093]
[1748244701083,5.4056,2579.0,2578.5,3.30155093]
[1748244701495,3.871,2579.0,2578.5,3.30155093]
[1748244704016,1.5058,2579.2,2578.7,3.30155093]
[1748244704318,5.3768,2579.2,2578.7,3.30155093]
[1748244704471,5.3768,2579.2,2578.7,3.63170602]
[1748244704675,5.3768,2579.2,2578.7,0.33015509]
[1748244706193,9.25408661,2579.2,2578.4,6.09]
[1748244707102,5.3768,2579.2,2578.4,6.09]
[1748244708465,5.3768,2579.2,2578.3,3.30155093]
[1748244708795,5.3768,2579.2,2578.3,11.30155093]
[1748244709000,5.3768,2579.2,2578.5,3.30155093]
[1748244709165,0.53768,2579.1,2578.5,3.30155093]
[1748244709360,1.5198,2578.8,2578.2,6.09]
[1748244711396,1.5198,2578.8,2578.2,9.39155093]
[1748244713101,1.5198,2578.8,2578.2,6.09]
[1748244713309,2.4466349,2578.8,2578.2,6.09]
[1748244714311,6.32445175,2578.8,2578.1,0.05]
[1748244714699,2.4466349,2578.8,2578.1,0.05]
[1748244715223,0.9268349,2578.8,2578.1,0.05]
[1748244715426,5.4213,2578.7,2578.1,0.05]
[1748244715780,5.4213,2578.7,2578.2,3.30155093]
[1748244717033,5.4213,2578.7,2578.1,0.05]
[1748244717329,5.53687337,2578.6,2578.1,0.05]
[1748244717530,0.94078734,2578.5,2578.1,0.05]
[1748244721518,4.81902407,2578.5,2578.1,0.05]
[1748244721726,3.87852596,2578.3,2578.1,0.05]
[1748244721927,5.48274626,2578.4,2578.1,0.05]
[1748244722531,5.4763,2578.4,2578.1,0.05]
[1748244723617,6.50583684,2578.4,2578.1,0.05]
[1748244724847,4.90153684,2578.4,2578.1,0.05]
[1748244725162,3.8795779,2577.6,2577.1,0.05]
[1748244725454,5.4335,2577.5,2577.1,0.05]
[1748244725607,1.5952,2577.4,2577.1,0.05]
[1748244728963,3.872,2577.3,2577.1,0.05]
[1748244729925,1.5952,2577.4,2577.1,0.05]
[1748244730124,3.872,2577.2,2577.1,0.05]
[1748244731603,6.07902,2577.2,2577.1,0.05]
[1748244733912,21.81075097,2577.2,2577.1,0.05]
[1748244734754,3.88063176,2576.9,2576.8,6.21418733]
[1748244734954,17.38388269,2576.9,2576.8,6.21418733]
[1748244735158,19.93942003,2576.9,2576.8,6.21418733]
[1748244735462,19.93942003,2576.9,2575.2,0.02789639]
[1748244735463,1.6517,2576.2,2575.2,0.02789639]
[1748244735756,13.25793713,2576.2,2575.2,0.02789639]
[1748244736050,13.25793713,2576.2,2575.2,3.32944732]
[1748244736227,2.2017,2576.2,2575.5,1.6625]
[1748244736423,6.0747,2576.2,2575.5,1.6625]
[1748244736622,7.11127,2576.2,2575.5,1.6625]
[1748244736828,7.11127,2576.2,2575.2,0.02789639]
[1748244737039,2.68827,2576.2,2575.3,3.30155093]
[1748244737348,6.0747,2576.2,2575.2,9.69039639]
[1748244737550,9.9563862,2576.2,2575.2,1.69039639]
[1748244737767,17.9563862,2576.2,2575.2,0.02789639]
[1748244738259,5.5257,2576.2,2575.3,3.30155093]
[1748244738414,5.5257,2576.2,2575.3,1.622]
[1748244738748,9.9573862,2576.2,2575.2,0.02789639]
[1748244738911,12.47143391,2576.2,2575.2,0.02789639]
[1748244739313,20.47143391,2576.2,2575.2,0.02789639]
[1748244740370,8.55,2576.1,2575.2,0.02789639]
[1748244740555,1.57,2575.4,2575.2,0.02789639]
[1748244740715,3.875,2575.3,2575.2,0.02789639]
[1748244741056,7.75804275,2575.3,2575.1,0.00941718]
[1748244741225,3.875,2575.3,2575.1,0.00941718]
[1748244741427,1.57,2575.2,2575.1,0.00941718]
[1748244741820,5.445,2575.2,2575.1,0.00941718]
[1748244742134,5.445,2575.2,2574.2,1.588]
[1748244742135,5.445,2575.2,2574.2,8.47713772]
[1748244742346,3.88345229,2575.1,2574.2,1.588]
[1748244742832,0.55,2575.1,2574.2,1.588]
[1748244743242,3.88335376,2575.1,2574.3,0.9638]
[1748244743444,1.57,2575.2,2574.3,0.9638]
[1748244743659,1.5076,2575.7,2574.4,10.01792039]
[1748244743857,3.875,2575.6,2575.0,1.59]
[1748244744228,3.875,2575.6,2574.7,1.6476]
[1748244744432,2.16786,2575.5,2574.6,1.6476]
[1748244744740,3.875,2575.4,2574.6,2.07552039]
[1748244745334,1.6296,2575.5,2574.6,10.07552039]
[1748244745560,3.875,2575.4,2574.7,0.42792039]
[1748244745865,3.875,2575.4,2574.6,1.6476]
[1748244746062,3.875,2575.4,2574.4,6.09]
[1748244746358,1.5057,2575.2,2574.1,1.6557]
[1748244746566,0.9375,2575.3,2574.1,1.6557]
[1748244746567,1.5057,2574.8,2574.1,1.6557]
[1748244746729,5.3817,2574.8,2574.1,1.6557]
[1748244747928,3.876,2574.8,2574.1,8.54483772]
[1748244748134,3.876,2574.7,2574.2,0.42792039]
[1748244748436,3.876,2574.6,2574.3,0.89727581]
[1748244748850,3.876,2574.6,2574.3,1.3251962]
[1748244749040,1.6584,2575.4,2574.5,1.5192]
[1748244749252,8.165,2575.3,2574.5,1.5192]
[1748244749561,3.876,2575.2,2574.6,0.03883797]
[1748244749860,3.876,2575.2,2574.6,0.94061995]
[1748244750060,3.876,2575.2,2574.6,0.51269956]
[1748244751679,3.876,2575.2,2573.9,0.44160551]
[1748244751680,1.658,2575.1,2574.2,8.0]
[1748244752062,1.658,2575.1,2574.3,1.5734]
[1748244752677,3.877,2575.0,2574.7,6.88913772]
[1748244752879,3.877,2575.0,2574.9,1.5703]
[1748244753787,3.877,2575.2,2574.9,1.5703]
[1748244753952,3.877,2575.2,2574.9,2.42012713]
[1748244755260,5.834,2575.8,2575.0,6.88913772]
[1748244755462,3.877,2575.7,2575.0,6.88913772]
[1748244755791,3.877,2575.7,2574.9,2.42012713]
[1748244756661,1.545,2575.8,2575.1,6.88913772]
[1748244756979,3.877,2575.6,2575.2,0.56014824]
[1748244757491,3.877,2575.6,2575.2,0.31014824]
[1748244758556,3.877,2575.7,2575.3,1.6058]
[1748244758912,0.05,2575.9,2575.6,9.6058]
[1748244759064,0.05,2575.9,2575.7,0.03881943]
[1748244759277,0.05,2575.9,2575.6,15.6958]
[1748244759688,0.05,2575.9,2575.6,6.09]
[1748244762860,1.5159,2575.8,2575.6,6.09]
[1748244763601,5.39824548,2575.8,2575.6,6.09]
[1748244763778,0.93304713,2575.7,2575.6,6.09]
[1748244764401,0.93304713,2575.7,2574.9,8.0]
[1748244764795,0.93304713,2575.7,2574.8,6.88913772]
[1748244765497,0.93304713,2575.7,2574.7,7.6011]
[1748244765703,0.93304713,2575.7,2574.8,8.0]
[1748244765889,0.93304713,2575.7,2574.8,7.85]
[1748244766269,3.876,2575.6,2574.9,6.88913772]
[1748244766802,3.876,2575.6,2574.8,7.85]
[1748244767002,6.07142407,2575.5,2574.4,2.03642278]
[1748244767303,0.99474241,2575.4,2574.4,2.03642278]
[1748244767670,0.99474241,2575.4,2574.4,1.5797]
[1748244768396,1.6435,2575.3,2574.4,1.5797]
[1748244769806,1.6435,2575.3,2574.5,0.03883867]
[1748244770010,3.876,2575.2,2574.5,6.88913772]
[1748244770190,1.6435,2575.3,2574.5,6.88913772]
[1748244770441,5.5195,2575.3,2574.5,6.88913772]
[1748244770967,3.877,2575.3,2574.6,1.6666]
[1748244771169,1.5623,2575.6,2574.8,6.88913772]
[1748244771395,3.877,2575.5,2574.8,6.88913772]
[1748244771703,3.877,2575.5,2575.1,6.88913772]
[1748244771889,3.877,2575.5,2575.0,1.6666]
[1748244773374,1.652,2575.8,2575.0,1.6666]
[1748244773582,1.652,2575.6,2574.6,14.54672278]
[1748244773795,1.652,2575.6,2574.6,14.39672278]
[1748244775008,3.88282342,2575.5,2574.6,7.85]
[1748244775213,1.5012,2575.4,2574.6,7.85]
[1748244776209,1.5012,2575.4,2574.7,0.03883623]
[1748244776380,1.5012,2575.4,2574.6,14.73913772]
[1748244776911,3.877,2575.3,2574.6,14.73913772]
[1748244777114,3.877,2575.3,2574.9,6.88913772]
[1748244778881,3.877,2575.4,2574.9,12.97913772]
[1748244780494,1.5776,2575.8,2575.0,1.657]
[1748244780697,3.877,2575.6,2575.0,1.657]
[1748244780906,3.877,2575.6,2575.1,8.0]
[1748244781311,0.05,2575.9,2575.2,8.49423772]
[1748244781497,0.05,2575.9,2575.5,6.88913772]
[1748244781684,0.05,2575.9,2575.6,9.5732]
[1748244781890,0.05,2575.9,2575.6,9.4732]
[1748244783195,0.05,2575.9,2575.8,14.88913772]
[1748244785015,0.05,2575.9,2575.8,16.45313772]
[1748244785344,0.05,2575.9,2575.4,1.564]
[1748244785546,0.05,2575.9,2575.3,15.3458605]
[1748244785833,0.05,2575.9,2575.3,0.45672278]
[1748244786006,1.5413,2575.8,2574.9,0.45672278]
[1748244786529,1.5413,2575.8,2574.9,8.45672278]
[1748244786699,5.4173,2575.8,2575.1,6.88913772]
[1748244788004,0.05,2575.9,2575.4,6.88913772]
[1748244788204,0.05,2575.9,2575.5,9.6827212]
[1748244788432,0.05,2575.9,2575.5,9.6439]
[1748244789534,0.05,2575.9,2575.8,8.0]
[1748244790451,0.05,2575.9,2575.7,6.88913772]
[1748244790452,0.05,2575.9,2575.5,9.6439]
[1748244792155,0.05,2575.9,2575.8,8.0]
[1748244793908,0.05,2575.9,2575.5,9.6439]
[1748244796325,0.05,2575.9,2575.8,8.0]
[1748244799836,0.05,2575.9,2575.8,14.09]
[1748244800127,0.05,2575.9,2575.8,15.6364]
[1748244802924,1.6334,2576.8,2575.8,15.6364]
[1748244803122,1.6334,2576.8,2576.4,8.0]
[1748244803451,1.6334,2576.8,2576.0,6.88913772]
[1748244803616,1.6334,2576.8,2575.6,8.49793772]
[1748244803825,1.6334,2576.6,2575.7,8.0]
[1748244804152,1.546,2576.5,2575.7,8.0]
[1748244804537,1.546,2576.5,2575.6,6.88913772]
[1748244804734,1.546,2576.5,2575.4,0.38325148]
[1748244804958,1.546,2576.5,2575.7,8.0]
[1748244805161,0.5421,2576.4,2575.7,8.0]
[1748244805477,1.5207,2576.3,2575.4,8.0]
[1748244806259,1.5207,2576.3,2575.4,8.39220775]
[1748244811790,1.5207,2576.3,2575.7,8.0]
[1748244812376,1.5988,2576.2,2575.2,7.3458605]
[1748244812578,1.5988,2576.0,2575.2,7.72613165]
[1748244812752,1.5988,2576.0,2575.2,7.26940887]
[1748244813069,1.5988,2576.0,2575.6,8.0]
[1748244813857,1.5255,2576.3,2575.6,8.0]
[1748244814059,1.5255,2576.3,2575.9,3.30832255]
[1748244814474,1.5255,2576.3,2576.0,8.0]
[1748244814771,1.5255,2576.3,2575.3,2.52814317]
[1748244814772,1.5255,2576.3,2575.5,3.30832255]
[1748244814946,1.5255,2576.3,2575.7,3.30832255]
[1748244816571,1.5255,2576.3,2575.6,8.0]
[1748244816770,1.6236,2576.1,2575.6,8.0]
[1748244817102,1.6236,2576.1,2575.4,8.0]
[1748244818470,1.6236,2576.1,2575.5,3.30832255]
[1748244819120,1.6236,2576.1,2575.7,3.30832255]
[1748244819462,1.6236,2576.1,2575.5,3.30832255]
[1748244819863,1.5156,2576.0,2575.3,3.30832255]
[1748244820807,1.5156,2576.0,2575.5,3.30832255]
[1748244822410,1.5156,2576.0,2575.5,8.0]
[1748244823280,5.3916,2576.0,2575.6,3.30832255]
[1748244823517,1.5156,2576.0,2575.8,3.30832255]
[1748244823703,3.876,2576.3,2575.9,8.33083226]
[1748244823908,3.876,2576.3,2576.0,3.30832255]
[1748244824076,1.5217,2576.2,2576.0,3.30832255]
[1748244824277,1.5217,2576.2,2575.9,8.0]
[1748244825592,1.5217,2576.2,2576.0,3.30832255]
[1748244826343,1.5217,2576.2,2575.6,0.42792039]
[1748244826344,1.5217,2576.2,2575.6,3.30832255]
[1748244827546,1.573,2576.1,2575.4,6.09]
[1748244828046,4.42153626,2576.2,2575.5,8.0]
[1748244828047,1.6021,2576.0,2575.5,8.0]
[1748244828226,1.6021,2575.8,2575.5,8.0]
[1748244828425,1.6021,2575.8,2575.2,3.30832255]
[1748244828795,1.6021,2575.8,2575.3,8.0]
[1748244829092,1.5211,2575.7,2575.3,8.0]
[1748244831538,1.5211,2575.7,2575.1,8.0]
[1748244831892,1.5211,2575.7,2574.8,6.54672278]
[1748244831893,1.6332,2575.6,2574.8,6.54672278]
[1748244832097,1.6332,2575.4,2574.7,0.45672278]
[1748244832398,1.6332,2575.2,2574.7,0.45672278]
[1748244833199,3.88343575,2575.1,2574.7,0.45672278]
[1748244833399,1.6651,2575.0,2574.7,0.45672278]
[1748244833621,3.88354936,2575.0,2574.7,0.45672278]
[1748244833807,1.547,2574.9,2574.2,8.0]
[1748244834010,1.547,2574.7,2574.3,7.35746201]
[1748244834232,1.547,2575.7,2574.7,8.0]
[1748244834458,1.547,2575.2,2574.7,8.0]
[1748244834604,1.547,2575.2,2574.7,8.42792039]
[1748244835144,3.876,2575.5,2574.9,6.89069825]
[1748244835347,1.5435,2575.4,2574.9,6.89069825]
[1748244835840,1.5435,2575.4,2575.0,8.0]
[1748244836945,1.5435,2575.7,2575.3,8.0]
[1748244838623,3.49506283,2575.9,2575.3,8.0]
[1748244839137,1.5435,2575.9,2575.3,8.0]
[1748244839333,4.284,2576.5,2575.5,6.89069825]
[1748244839534,5.4498,2576.4,2575.5,6.89069825]
[1748244839843,1.5738,2576.3,2575.4,1.536]
[1748244840221,1.5738,2576.3,2575.2,6.89069825]
[1748244840222,1.5738,2576.1,2575.1,8.0]
[1748244840422,1.5738,2575.9,2575.1,8.0]
[1748244840633,1.5738,2575.9,2575.3,6.89069825]
[1748244840832,3.876,2576.1,2575.4,9.536]
[1748244841040,3.876,2576.3,2575.4,9.536]
[1748244841748,1.6397,2576.2,2575.4,9.536]
[1748244843836,1.5739,2576.4,2575.8,8.0]
[1748244844051,1.5739,2576.8,2576.3,6.89069825]
[1748244844348,1.5739,2576.8,2576.4,0.03880823]
[1748244844548,1.5739,2576.8,2576.4,8.0]
[1748244845450,0.05,2576.9,2576.4,1.5511]
[1748244845750,0.05,2576.9,2576.6,8.0]
[1748244847644,0.05,2576.9,2576.8,14.89069825]
[1748244847951,0.05,2576.9,2576.8,16.52029825]
[1748244854449,0.05,2576.9,2576.8,9.6296]
[1748244854753,0.05,2576.9,2576.8,8.0]
[1748244858484,1.6267,2576.9,2576.0,1.6587]
[1748244859628,1.6267,2576.9,2576.5,8.0]
[1748244860852,1.6267,2576.9,2576.1,14.89069825]
[1748244863350,1.6267,2576.9,2576.0,1.6587]
[1748244863549,1.6267,2576.9,2575.8,14.56329825]
[1748244863550,1.5,2576.7,2575.8,14.56329825]
[1748244864046,1.5,2576.7,2575.9,8.0]
[1748244865766,1.5,2576.7,2576.0,0.42792039]
[1748244866180,1.5,2576.7,2576.1,6.89069825]
[1748244866338,1.5,2576.7,2576.2,0.73186186]
[1748244866935,1.5,2576.7,2576.2,8.73186186]
[1748244870267,1.5,2576.7,2575.6,0.45672278]
[1748244870579,1.52,2576.6,2575.6,0.45672278]
[1748244870752,1.6042,2576.4,2575.6,0.45672278]
[1748244871486,1.6042,2576.4,2575.5,9.5334]
[1748244871659,1.6042,2576.4,2575.8,8.0]
[1748244872069,1.6042,2576.4,2576.1,8.0]
[1748244872270,1.6292,2576.6,2576.4,8.0]
[1748244872490,1.6292,2576.8,2576.4,8.0]